bitfinex/quotes_SOLUSD_20250123
["timestamp","ask_amount","ask_price","bid_price","bid_amount"]
[1737640715256,66.45653786,247.34,247.33,0.063]
[1737640715630,20.0,247.3,247.28,0.063]
[1737640715828,51.22531093,247.29,247.28,0.063]
[1737640717065,42.59521093,247.29,247.28,0.063]
[1737640717268,43.59521093,247.29,247.28,0.063]
[1737640717765,47.63901093,247.29,247.28,0.063]
[1737640718282,18.81832693,247.29,247.28,0.063]
[1737640719565,19.81832693,247.29,247.28,0.063]
[1737640719771,18.81832693,247.29,247.28,0.063]
[1737640719942,19.81832693,247.29,247.28,0.063]
[1737640720135,43.776884,247.26,247.11,4.0466]
[1737640720336,18.81832693,247.13,247.09,4.047]
[1737640720580,1.5012,247.25,247.09,4.047]
[1737640720581,18.81832693,247.19,247.12,18.81832693]
[1737640721066,18.81832693,247.19,247.1,18.81832693]
[1737640721245,18.81832693,247.17,247.1,18.81832693]
[1737640721445,18.81832693,247.15,247.09,4.047]
[1737640722257,18.81832693,247.11,247.07,10.2678]
[1737640722581,18.81832693,247.11,247.06,1.6076]
[1737640722855,18.81832693,247.11,247.06,5.6551]
[1737640723159,18.81832693,247.13,247.06,5.6551]
[1737640723363,18.81832693,247.15,247.06,24.47342693]
[1737640723546,18.81832693,247.13,247.06,5.6551]
[1737640725662,18.81832693,247.11,247.06,5.6551]
[1737640726269,18.81832693,247.09,247.06,1.6076]
[1737640726453,18.81832693,247.11,247.06,5.6551]
[1737640726763,27.822584,247.17,247.06,5.6551]
[1737640726764,18.81832693,247.13,247.06,5.6551]
[1737640726967,18.81832693,247.13,247.06,5.7181]
[1737640728365,18.81832693,247.07,247.06,0.063]
[1737640729173,18.81832693,247.09,247.06,0.063]
[1737640729491,18.81832693,247.07,247.06,0.063]
[1737640729689,11.80072755,247.07,247.06,0.063]
[1737640730275,40.62501155,247.07,247.06,0.063]
[1737640730651,40.62501155,247.07,247.01,0.063]
[1737640730652,20.0,247.03,247.01,0.063]
[1737640730861,35.57761155,247.02,247.01,0.063]
[1737640731069,11.80072755,247.02,247.01,0.063]
[1737640731756,18.89522504,247.02,247.01,0.063]
[1737640732367,42.67210904,247.02,247.01,0.063]
[1737640736584,18.89522504,247.02,247.01,0.063]
[1737640736881,18.89522504,247.04,247.01,0.063]
[1737640737080,18.89522504,247.06,247.01,4.1113]
[1737640737598,18.89522504,247.08,247.01,4.1113]
[1737640738174,18.89522504,247.06,247.01,4.1113]
[1737640738482,18.89522504,247.06,247.01,0.063]
[1737640739865,18.89522504,247.08,247.01,4.1114]
[1737640740185,18.89522504,247.06,247.01,0.063]
[1737640743188,18.89522504,247.1,247.02,18.89522504]
[1737640743586,18.89522504,247.12,247.05,6.3995]
[1737640743974,18.89522504,247.14,247.07,4.0474]
[1737640744188,18.89522504,247.18,247.1,18.89522504]
[1737640744383,11.1105,247.27,247.12,18.89522504]
[1737640744384,18.89522504,247.2,247.12,18.89522504]
[1737640745293,18.89522504,247.2,247.13,4.0464]
[1737640745495,18.89522504,247.22,247.14,18.89522504]
[1737640745668,18.92522504,247.28,247.2,18.89522504]
[1737640746075,0.03,247.28,247.22,18.89522504]
[1737640746274,0.03,247.28,247.2,18.89522504]
[1737640746476,18.92522504,247.28,247.2,18.89522504]
[1737640746678,18.92522504,247.28,247.16,6.1896]
[1737640746679,18.89522504,247.26,247.18,18.89522504]
[1737640746997,18.92522504,247.28,247.19,18.89522504]
[1737640747290,0.03,247.28,247.21,18.89522504]
[1737640747474,18.89522504,247.26,247.17,18.89522504]
[1737640747675,18.89522504,247.22,247.16,6.1896]
[1737640748092,18.89522504,247.2,247.16,6.1896]
[1737640748592,18.89522504,247.2,247.13,1.6187]
[1737640748802,18.89522504,247.18,247.13,1.6187]
[1737640748984,18.89522504,247.16,247.1,6.5518]
[1737640749170,1.0,247.22,247.1,6.5518]
[1737640749171,18.89522504,247.14,247.1,6.5518]
[1737640749376,18.89522504,247.12,247.06,1.6134]
[1737640749898,18.89522504,247.1,247.06,1.6134]
[1737640750805,18.89522504,247.08,247.01,4.1113]
[1737640751693,18.89522504,247.06,247.01,0.063]
[1737640752390,18.89522504,247.1,247.01,23.00652504]
[1737640752690,18.89522504,247.12,247.03,18.89522504]
[1737640753683,18.89522504,247.1,247.01,23.00652504]
[1737640755695,18.89522504,247.12,247.03,18.89522504]
[1737640755910,18.89522504,247.1,247.03,4.0479]
[1737640757198,18.89522504,247.1,247.02,4.0481]
[1737640757399,18.89522504,247.08,247.01,0.063]
[1737640757611,18.89522504,247.06,247.01,0.063]
[1737640757893,18.89522504,247.04,247.01,0.063]
[1737640758083,18.89522504,247.06,247.01,0.063]
[1737640759082,23.776884,247.08,247.01,0.063]
[1737640759083,18.89522504,247.03,247.01,0.063]
[1737640763300,22.94302504,247.05,247.01,0.063]
[1737640763700,18.89522504,247.07,247.01,0.063]
[1737640764583,4.0471,247.09,247.01,0.063]
[1737640764584,18.89522504,247.03,247.01,0.063]
[1737640765009,23.776884,247.02,247.01,0.063]
[1737640765197,27.825084,247.02,247.01,0.063]
[1737640768510,23.776884,246.98,246.88,1.5475]
[1737640768815,18.89522504,246.95,246.88,5.5979]
[1737640769713,18.89522504,246.91,246.86,6.5545]
[1737640769931,18.89522504,246.95,246.87,4.0507]
[1737640770216,18.89522504,246.97,246.87,22.94592504]
[1737640770995,22.94422504,246.97,246.87,22.94592504]
[1737640771221,18.89522504,246.95,246.87,22.94592504]
[1737640771721,18.89522504,246.95,246.87,4.0507]
[1737640772211,18.89522504,246.95,246.87,22.94592504]
[1737640772417,18.89522504,246.97,246.87,22.94592504]
[1737640773595,18.89522504,246.95,246.87,22.94592504]
[1737640774714,22.94472504,246.95,246.86,6.5545]
[1737640774910,18.89522504,246.91,246.86,6.5545]
[1737640775101,18.89522504,246.89,246.82,5.6385]
[1737640775503,18.89522504,246.89,246.87,0.063]
[1737640776811,4.0505,246.88,246.87,0.063]
[1737640777600,18.89522504,246.89,246.87,0.063]
[1737640778738,22.94562504,246.89,246.87,0.063]
[1737640779225,23.776884,246.88,246.87,0.063]
[1737640780018,27.827384,246.88,246.87,0.063]
[1737640784714,23.776884,246.86,246.76,0.063]
[1737640784914,18.89522504,246.81,246.76,0.063]
[1737640785806,11.82428273,246.82,246.76,0.063]
[1737640787016,4.0516,246.81,246.76,0.063]
[1737640787216,11.82428273,246.82,246.76,0.063]
[1737640787422,15.87578273,246.82,246.76,0.063]
[1737640787821,11.82428273,246.8,246.76,0.063]
[1737640788219,15.87618273,246.8,246.76,0.063]
[1737640788417,11.82428273,246.8,246.76,0.063]
[1737640788628,11.82428273,246.82,246.76,0.063]
[1737640788938,11.82428273,246.82,246.76,4.1154]
[1737640789138,11.82428273,246.82,246.76,0.063]
[1737640789515,4.0513,246.83,246.76,11.88728273]
[1737640789713,11.82428273,246.82,246.76,0.063]
[1737640791136,15.87578273,246.82,246.76,0.063]
[1737640791720,11.82428273,246.8,246.76,0.063]
[1737640792318,11.82428273,246.78,246.76,0.063]
[1737640793315,15.87648273,246.78,246.76,0.063]
[1737640796533,11.82428273,246.78,246.76,0.063]
[1737640797340,15.87648273,246.78,246.76,0.063]
[1737640798736,23.776884,246.77,246.76,0.063]
[1737640799119,15.87648273,246.78,246.76,0.063]
[1737640800333,27.829184,246.77,246.76,0.063]
[1737640800535,4.0523,246.77,246.76,0.063]
[1737640800737,11.82428273,246.78,246.76,0.063]
[1737640801630,23.776884,246.77,246.76,0.063]
[1737640804451,0.03,246.81,246.8,11.82428273]
[1737640806351,0.03,246.81,246.79,1.5329]
[1737640806723,0.03,246.81,246.78,129.3]
[1737640807238,0.03,246.81,246.77,6.1051]
[1737640807545,0.03,246.81,246.76,129.363]
[1737640808463,27.858484,246.81,246.76,0.063]
[1737640808628,11.82428273,246.8,246.76,0.063]
[1737640812155,11.85428273,246.8,246.76,0.063]
[1737640812844,11.82428273,246.78,246.76,0.063]
[1737640813150,23.776884,246.7,246.62,0.063]
[1737640813340,11.82428273,246.67,246.62,0.063]
[1737640813542,11.82428273,246.65,246.62,0.063]
[1737640814431,11.82428273,246.72,246.62,0.063]
[1737640814432,11.82428273,246.67,246.62,0.063]
[1737640814739,11.82428273,246.63,246.62,0.063]
[1737640817540,35.60116673,246.63,246.62,0.063]
[1737640818855,47.42544946,246.63,246.62,0.063]
[1737640819931,20.0,246.59,246.54,0.063]
[1737640820136,35.60116673,246.55,246.54,0.063]
[1737640820631,39.65706673,246.55,246.54,0.063]
[1737640821962,11.82428273,246.55,246.54,0.063]
[1737640822334,11.82428273,246.57,246.54,0.063]
[1737640822671,11.82428273,246.55,246.54,0.063]
[1737640823372,5.6649,246.64,246.54,0.063]
[1737640823373,11.82428273,246.59,246.54,0.063]
[1737640823539,11.82428273,246.59,246.54,4.119]
[1737640823728,11.82428273,246.59,246.54,0.063]
[1737640823929,11.82428273,246.57,246.54,0.063]
[1737640824171,35.60116673,246.55,246.54,0.063]
[1737640824830,20.0,246.47,246.36,6.4153]
[1737640825051,55.60116673,246.47,246.37,4.1218]
[1737640826161,59.65836673,246.47,246.37,4.1218]
[1737640826367,59.65836673,246.47,246.37,0.063]
[1737640827234,59.65836673,246.47,246.37,4.1219]
[1737640827662,47.834084,246.47,246.37,4.1219]
[1737640827875,66.81547522,246.47,246.37,4.1219]
[1737640830076,18.98139122,246.48,246.37,23.10329122]
[1737640830376,18.98139122,246.48,246.39,18.98139122]
[1737640830537,18.98139122,246.5,246.44,6.1725]
[1737640830735,18.98139122,246.55,246.46,19.01139122]
[1737640831873,18.98139122,246.55,246.47,4.0572]
[1737640833372,23.776884,246.54,246.47,4.0572]
[1737640833676,18.98139122,246.53,246.47,4.0572]
[1737640833848,18.98139122,246.51,246.46,0.03]
[1737640834754,18.98139122,246.49,246.46,0.03]
[1737640835258,18.98139122,246.53,246.46,0.03]
[1737640835569,18.98139122,246.55,246.46,148.31139122]
[1737640835772,18.98139122,246.63,246.53,148.28139122]
[1737640836000,18.98139122,246.65,246.55,148.28139122]
[1737640836376,18.98139122,246.63,246.55,148.28139122]
[1737640836683,18.98139122,246.63,246.55,129.3]
[1737640837051,18.98139122,246.61,246.55,129.3]
[1737640837567,18.98139122,246.59,246.51,148.28139122]
[1737640837877,18.98139122,246.59,246.52,4.0564]
[1737640839375,20.0,246.56,246.52,4.0564]
[1737640839574,18.98139122,246.57,246.5,4.0566]
[1737640842250,38.98139122,246.54,246.5,4.0566]
[1737640842560,20.0,246.54,246.48,4.0569]
[1737640842756,23.776884,246.55,246.48,4.0569]
[1737640842957,18.98139122,246.54,246.48,4.0569]
[1737640843677,42.75827522,246.56,246.48,4.0569]
[1737640845775,18.98139122,246.54,246.48,4.0569]
[1737640847256,18.98139122,246.54,246.47,7.904]
[1737640847257,23.776884,246.51,246.47,0.063]
[1737640847459,18.98139122,246.5,246.47,0.063]
[1737640848868,18.98139122,246.52,246.47,0.063]
[1737640849076,18.98139122,246.54,246.47,4.1202]
[1737640849278,18.98139122,246.58,246.48,148.28139122]
[1737640849661,18.98139122,246.6,246.5,148.28139122]
[1737640850384,18.98139122,246.62,246.52,18.98139122]
[1737640850681,0.03,246.65,246.56,18.98139122]
[1737640850860,0.03,246.65,246.58,18.98139122]
[1737640851357,0.03,246.65,246.6,18.98139122]
[1737640852179,0.03,246.65,246.57,133.3556]
[1737640852755,18.98139122,246.64,246.54,148.28139122]
[1737640853483,0.03,246.65,246.63,18.98139122]
[1737640854883,0.03,246.65,246.63,23.03589122]
[1737640855858,0.03,246.65,246.57,129.3]
[1737640855859,0.03,246.65,246.59,18.98139122]
[1737640856098,0.03,246.65,246.57,152.33689122]
[1737640856570,19.01139122,246.65,246.57,129.3]
[1737640856993,19.01139122,246.65,246.57,133.3555]
[1737640857288,23.776884,246.64,246.57,129.3]
[1737640857658,20.0,246.58,246.51,27.07009122]
[1737640857857,20.0,246.58,246.51,12.1452]
[1737640858083,20.0,246.58,246.51,8.0887]
[1737640858684,18.98139122,246.61,246.51,160.42659122]
[1737640858983,18.98139122,246.63,246.55,18.98139122]
[1737640859489,20.0,246.6,246.55,18.98139122]
[1737640860384,20.0,246.6,246.56,4.0558]
[1737640860581,20.0,246.6,246.56,133.3558]
[1737640860882,18.98139122,246.63,246.56,133.3558]
[1737640866898,27.861184,246.65,246.56,133.3558]
[1737640866899,19.01139122,246.65,246.57,18.98139122]
[1737640867088,0.03,246.65,246.59,148.28139122]
[1737640867268,0.03,246.65,246.63,148.28139122]
[1737640867470,0.03,246.65,246.64,7.9318]
[1737640867671,0.03,246.65,246.64,137.2318]
[1737640867879,0.0001,246.65,246.64,137.2318]
[1737640868369,0.03,246.8,246.69,130.3]
[1737640868587,0.03,246.8,246.76,148.28139122]
[1737640869292,0.03,246.8,246.78,18.98139122]
[1737640869478,0.03,246.8,246.78,148.28139122]
[1737640870271,0.03,246.8,246.78,129.3]
[1737640870801,0.03,246.8,246.74,18.98139122]
[1737640871084,18.98139122,246.79,246.72,18.98139122]
[1737640871277,23.776884,246.76,246.7,129.3]
[1737640871587,20.0,246.74,246.68,148.28139122]
[1737640871804,20.0,246.72,246.68,129.3]
[1737640872096,20.0,246.72,246.64,156.21319122]
[1737640872264,42.75827522,246.71,246.64,129.3]
[1737640872765,42.75827522,246.71,246.58,7.6857]
[1737640872766,23.776884,246.68,246.6,148.28139122]
[1737640872967,23.776884,246.68,246.6,129.3]
[1737640873460,18.98139122,246.67,246.6,129.3]
[1737640873666,18.98139122,246.67,246.58,155.96709122]
[1737640873899,18.98139122,246.67,246.58,26.66709122]
[1737640874080,18.98139122,246.67,246.58,155.96709122]
[1737640874584,4.0538,246.68,246.58,129.3]
[1737640874585,18.98139122,246.63,246.58,129.3]
[1737640874768,20.0,246.63,246.58,129.3]
[1737640874973,18.98139122,246.68,246.6,18.98139122]
[1737640875278,4.0526,246.75,246.6,148.28139122]
[1737640875279,18.98139122,246.7,246.6,148.28139122]
[1737640875481,20.0,246.67,246.6,148.28139122]
[1737640875787,18.98139122,246.72,246.62,148.28139122]
[1737640876005,18.98139122,246.72,246.64,18.98139122]
[1737640876282,20.0,246.69,246.64,18.98139122]
[1737640876484,20.0,246.69,246.62,148.28139122]
[1737640877000,20.0,246.67,246.62,129.3]
[1737640877368,18.98139122,246.66,246.6,129.3]
[1737640877991,18.98139122,246.66,246.6,133.3551]
[1737640878180,18.98139122,246.68,246.6,133.3551]
[1737640878489,18.98139122,246.68,246.6,152.33649122]
[1737640878881,20.0,246.67,246.6,152.33649122]
[1737640880095,18.98139122,246.68,246.6,133.3551]
[1737640881680,18.98139122,246.68,246.6,152.33649122]
[1737640882895,23.776884,246.7,246.6,133.3551]
[1737640882896,18.98139122,246.66,246.6,133.3551]
[1737640883904,18.98139122,246.68,246.6,133.3551]
[1737640885207,18.98139122,246.68,246.6,152.33649122]
[1737640886106,20.0,246.64,246.58,18.98139122]
[1737640886297,18.98139122,246.64,246.56,18.98139122]
[1737640887109,20.0,246.63,246.56,18.98139122]
[1737640887408,20.0,246.63,246.58,18.98139122]
[1737640887715,23.03499122,246.7,246.62,18.98139122]
[1737640888507,20.0,246.66,246.62,18.98139122]
[1737640890011,23.776884,246.69,246.62,18.98139122]
[1737640890326,18.98139122,246.78,246.68,148.28139122]
[1737640890604,23.06319122,246.8,246.7,18.98139122]
[1737640890810,23.776884,246.79,246.7,18.98139122]
[1737640891020,23.776884,246.77,246.7,18.98139122]
[1737640891180,4.0818,246.8,246.66,129.3]
[1737640891181,20.0,246.7,246.66,129.3]
[1737640891385,20.0,246.69,246.66,129.3]
[1737640894420,20.0,246.69,246.64,148.28139122]
[1737640895105,20.0,246.69,246.64,129.3]
[1737640895286,38.98139122,246.7,246.62,148.28139122]
[1737640895494,43.03489122,246.7,246.62,148.28139122]
[1737640896611,38.98139122,246.7,246.62,148.28139122]
[1737640896808,20.0,246.69,246.64,18.98139122]
[1737640896991,18.98139122,246.72,246.64,23.03569122]
[1737640897493,20.0,246.69,246.64,23.03569122]
[1737640897700,20.0,246.69,246.64,15.88943265]
[1737640897898,20.03,246.7,246.64,15.88943265]
[1737640898288,0.03,246.7,246.64,15.88943265]
[1737640898815,20.03,246.7,246.64,15.88943265]
[1737640900015,11.83513265,246.69,246.62,129.363]
[1737640900196,11.83513265,246.67,246.62,129.363]
[1737640902016,20.0,246.63,246.62,0.063]
[1737640902714,11.83513265,246.63,246.62,0.063]
[1737640903295,35.61201665,246.63,246.62,0.063]
[1737640903495,39.66661665,246.63,246.62,0.063]
[1737640904800,40.66661665,246.63,246.62,0.063]
[1737640905036,40.66661665,246.63,246.62,0.0001]
[1737640905037,53.5017493,246.63,246.62,0.0001]
[1737640905207,20.0,246.55,246.49,0.063]
[1737640905400,11.83513265,246.51,246.49,0.063]
[1737640906413,21.97313265,246.6,246.49,0.063]
[1737640906414,11.83513265,246.59,246.5,11.83513265]
[1737640906623,11.83513265,246.63,246.54,141.13513265]
[1737640906939,5.6955,246.65,246.54,141.13513265]
[1737640906940,20.0,246.58,246.54,141.13513265]
[1737640907296,20.0,246.58,246.54,129.3]
[1737640908100,20.0,246.56,246.5,148.25346063]
[1737640908318,20.0,246.54,246.5,148.25346063]
[1737640908625,20.0,246.54,246.5,129.3]
[1737640909098,18.95346063,246.57,246.49,0.063]
[1737640909099,20.0,246.52,246.49,0.063]
[1737640911121,18.95346063,246.51,246.49,0.063]
[1737640911830,23.01006063,246.51,246.49,0.063]
[1737640912029,20.0,246.5,246.49,0.063]
[1737640912529,43.776884,246.5,246.49,0.063]
[1737640913820,47.833584,246.5,246.49,0.063]
[1737640917221,20.0,246.5,246.49,0.063]
[1737640917428,18.95346063,246.51,246.49,0.063]
[1737640918321,20.0,246.5,246.49,0.063]
[1737640919430,18.95346063,246.58,246.49,133.4199]
[1737640919738,18.95346063,246.6,246.5,18.95346063]
[1737640920609,18.95346063,246.58,246.5,18.95346063]
[1737640920806,18.95346063,246.58,246.49,133.4199]
[1737640922038,18.95346063,246.58,246.5,18.95346063]
[1737640922433,18.95346063,246.58,246.49,133.4199]
[1737640922824,20.0,246.53,246.49,0.063]
[1737640923129,18.95346063,246.51,246.49,0.063]
[1737640924236,18.95346063,246.53,246.49,0.063]
[1737640925435,18.95346063,246.51,246.49,0.063]
[1737640926942,23.01006063,246.51,246.49,0.063]
[1737640927738,18.95346063,246.51,246.49,0.063]
[1737640928127,1.0,246.61,246.49,0.063]
[1737640928128,18.95346063,246.53,246.49,0.063]
[1737640928736,20.0,246.5,246.49,0.063]
[1737640929825,35.63413909,246.5,246.49,0.063]
[1737640930747,39.69083909,246.5,246.49,0.063]
[1737640931746,46.80999545,246.5,246.49,0.063]
[1737640932935,42.75329545,246.5,246.49,0.063]
[1737640933142,23.776884,246.5,246.49,0.063]
[1737640934746,18.97641145,246.53,246.49,0.063]
[1737640935128,18.97641145,246.51,246.49,0.063]
[1737640936274,23.03301145,246.51,246.49,0.063]
[1737640937081,18.97641145,246.51,246.49,0.063]
[1737640937290,18.97641145,246.53,246.49,0.063]
[1737640937664,20.0,246.5,246.49,0.063]
[1737640939276,18.97641145,246.51,246.49,0.063]
[1737640939864,23.03301145,246.51,246.49,0.063]
[1737640941492,23.776884,246.5,246.49,0.063]
[1737640942108,43.776884,246.48,246.47,0.063]
[1737640942265,20.0,246.39,246.35,129.363]
[1737640942984,18.97641145,246.44,246.35,129.363]
[1737640943167,20.0,246.41,246.35,129.363]
[1737640943364,20.0,246.41,246.36,4.0591]
[1737640943585,20.0,246.39,246.35,129.363]
[1737640943955,38.97641145,246.39,246.35,129.363]
[1737640944660,23.776884,246.38,246.35,0.063]
[1737640944869,27.835584,246.38,246.35,0.063]
[1737640946561,48.81199545,246.38,246.35,0.063]
[1737640946749,20.0,246.32,246.31,0.03]
[1737640946945,62.75329545,246.32,246.31,0.03]
[1737640948978,18.97641145,246.36,246.31,0.03]
[1737640949753,18.97641145,246.38,246.31,129.33]
[1737640949951,18.97641145,246.4,246.31,148.30641145]
[1737640950168,18.97641145,246.42,246.34,148.27641145]
[1737640950881,18.97641145,246.42,246.35,4.0592]
[1737640951676,11.86446679,246.41,246.35,4.0592]
[1737640951864,20.0,246.38,246.35,4.0592]
[1737640952181,20.0,246.38,246.34,129.3]
[1737640952574,20.0,246.38,246.35,4.0592]
[1737640953072,20.0,246.38,246.34,129.3]
[1737640953575,11.86446679,246.39,246.34,129.3]
[1737640954081,20.0,246.36,246.31,129.33]
[1737640954391,11.86446679,246.41,246.32,11.86446679]
[1737640954553,11.86446679,246.39,246.32,11.86446679]
[1737640955393,20.0,246.43,246.31,0.03]
[1737640955394,20.0,246.32,246.31,0.03]
[1737640955695,11.86446679,246.33,246.31,0.03]
[1737640956062,11.86446679,246.37,246.31,0.03]
[1737640956362,20.0,246.34,246.31,0.03]
[1737640957686,11.86446679,246.35,246.31,0.03]
[1737640957860,15.92406679,246.33,246.31,0.03]
[1737640958182,11.86446679,246.33,246.31,0.03]
[1737640959284,11.86446679,246.33,246.21,0.03]
[1737640959285,20.0,246.28,246.21,0.03]
[1737640959456,20.0,246.23,246.21,0.03]
[1737640959655,55.64135079,246.23,246.21,0.03]
[1737640960272,57.26660279,246.23,246.21,0.03]
[1737640960460,55.64135079,246.23,246.21,0.03]
[1737640961874,59.70255079,246.23,246.21,0.03]
[1737640962783,47.838084,246.23,246.21,0.03]
[1737640965280,23.776884,246.22,246.21,0.03]
[1737640965473,35.64135079,246.22,246.21,0.03]
[1737640967292,11.86446679,246.22,246.21,0.03]
[1737640968796,35.64135079,246.22,246.21,0.03]
[1737640969189,11.86446679,246.22,246.21,0.03]
[1737640970289,35.64135079,246.22,246.21,0.03]
[1737640974398,39.70275079,246.22,246.21,0.03]
[1737640975097,35.64135079,246.22,246.21,0.03]
[1737640975306,11.86446679,246.22,246.21,0.03]
[1737640975485,11.86446679,246.24,246.21,0.03]
[1737640975804,20.0,246.22,246.21,0.03]
[1737640976186,55.64135079,246.22,246.21,0.03]
[1737640979304,31.86446679,246.22,246.21,0.03]
[1737640979580,11.86446679,246.22,246.21,0.03]
[1737640979780,11.86446679,246.24,246.21,0.03]
[1737640980507,23.776884,246.27,246.21,129.33]
[1737640980680,11.86446679,246.3,246.21,129.33]
[1737640981088,11.86446679,246.3,246.22,11.86446679]
[1737640981586,11.86446679,246.34,246.26,11.86446679]
[1737640981787,11.86446679,246.34,246.24,11.86446679]
[1737640982896,11.86446679,246.34,246.26,11.86446679]
[1737640983085,10.2062,246.47,246.26,11.86446679]
[1737640983086,11.86446679,246.42,246.32,11.86446679]
[1737640983294,11.86446679,246.42,246.32,141.16446679]
[1737640983494,0.063,246.47,246.32,141.16446679]
[1737640983495,23.776884,246.39,246.32,129.3]
[1737640983698,11.86446679,246.4,246.32,129.3]
[1737640983904,11.86446679,246.42,246.32,141.16446679]
[1737640984111,11.86446679,246.44,246.34,141.16446679]
[1737640984808,11.86446679,246.44,246.35,4.0592]
[1737640985209,11.86446679,246.41,246.34,129.3]
[1737640986714,4.0581,246.42,246.34,129.3]
[1737640986715,11.86446679,246.39,246.34,129.3]
[1737640987101,11.86446679,246.37,246.33,129.3]
[1737640987301,31.86446679,246.37,246.33,129.3]
[1737640988018,23.776884,246.36,246.33,129.3]
[1737640988197,11.86446679,246.35,246.33,129.3]
[1737640991945,20.0,246.31,246.27,129.3]
[1737640992240,35.64135079,246.3,246.21,137.4824]
[1737640992618,11.86446679,246.28,246.21,137.4824]
[1737640992817,11.86446679,246.3,246.21,153.40836679]
[1737640993122,23.776884,246.27,246.21,137.4824]
[1737640993816,11.86446679,246.28,246.21,137.4824]
[1737640994599,39.70145079,246.3,246.21,141.5439]
[1737640994803,23.776884,246.29,246.21,137.4824]
[1737640995242,23.776884,246.29,246.21,153.40836679]
[1737640995541,11.86446679,246.3,246.21,153.40836679]
[1737640995830,11.86446679,246.34,246.26,141.16446679]
[1737640996161,23.776884,246.31,246.26,129.3]
[1737640996294,23.776884,246.29,246.22,141.16446679]
[1737640996899,23.776884,246.29,246.22,129.3]
[1737640997542,11.86446679,246.28,246.22,129.3]
[1737640997927,20.0,246.27,246.22,129.3]
[1737640998141,20.0,246.27,246.22,133.3613]
[1737640998320,11.86446679,246.3,246.22,145.22576679]
[1737640999468,0.063,246.35,246.26,11.86446679]
[1737640999610,0.063,246.35,246.22,144.5148]
[1737640999611,0.063,246.35,246.3,11.86446679]
[1737641000243,23.839884,246.35,246.28,129.3]
[1737641000617,11.86446679,246.34,246.28,129.3]
[1737641000816,20.0,246.33,246.28,133.3603]
[1737641001051,0.063,246.35,246.28,133.3603]
[1737641001217,0.063,246.35,246.28,145.22476679]
[1737641002635,20.063,246.35,246.28,145.22476679]
[1737641003444,20.063,246.35,246.3,15.92446679]
[1737641003827,0.063,246.35,246.34,141.16446679]
[1737641004025,0.063,246.35,246.34,149.08826679]
[1737641005312,0.063,246.35,246.34,153.14766679]
[1737641010245,5.063,246.35,246.34,153.14766679]
[1737641010750,0.063,246.38,246.34,164.29616679]
[1737641010934,0.063,246.38,246.37,11.86446679]
[1737641011241,0.063,246.38,246.36,11.86446679]
[1737641011864,5.063,246.38,246.36,11.86446679]
[1737641012537,5.063,246.38,246.37,4.0589]
[1737641014042,5.063,246.38,246.36,11.86446679]
[1737641014233,5.063,246.38,246.36,15.92336679]
[1737641014430,5.063,246.38,246.36,27.78783358]
[1737641014830,10.063,246.38,246.36,15.92336679]
[1737641016230,10.063,246.38,246.36,145.22336679]
[1737641018049,10.063,246.38,246.36,157.08783358]
[1737641018243,0.063,246.47,246.41,130.3]
[1737641018553,0.063,246.47,246.46,141.16446679]
[1737641019148,0.0001,246.47,246.46,153.02893358]
[1737641019451,0.0001,246.47,246.46,159.64843358]
[1737641019649,0.063,246.59,246.49,20.0]
[1737641019850,0.063,246.59,246.56,141.16446679]
[1737641020357,0.063,246.59,246.56,145.22016679]
[1737641021641,0.063,246.59,246.56,141.16446679]
[1737641022044,0.063,246.59,246.58,11.86446679]
[1737641024270,0.063,246.59,246.58,141.16446679]
[1737641024640,0.063,246.59,246.58,150.11996679]
[1737641024942,0.063,246.6,246.59,4.0553]